bitfinex/quotes_BTCUSD_20250316
["timestamp","ask_amount","ask_price","bid_price","bid_amount"]
[1742165896612,0.003,82354.0,82353.0,0.40817469]
[1742165896727,0.07927319,82367.0,82358.0,0.284715]
[1742165896936,0.01141189,82367.0,82358.0,0.333815]
[1742165897966,0.494236,82374.0,82358.0,0.333815]
[1742165898208,0.02293082,82359.0,82358.0,0.333815]
[1742165898414,0.02293082,82359.0,82358.0,0.43552347]
[1742165899624,0.000338,82359.0,82358.0,0.43652347]
[1742165902759,0.05898136,82359.0,82358.0,0.43652347]
[1742165903176,0.05898136,82359.0,82358.0,0.43184347]
[1742165903984,0.07801137,82359.0,82358.0,0.43184347]
[1742165904592,0.07801137,82359.0,82358.0,0.330135]
[1742165905781,0.07801137,82359.0,82358.0,0.329135]
[1742165906189,0.07801137,82359.0,82358.0,0.330135]
[1742165907002,0.28442337,82359.0,82358.0,0.001]
[1742165907219,0.57993421,82359.0,82358.0,0.001]
[1742165908053,0.506425,82354.0,82353.0,0.00029287]
[1742165908319,0.51604271,82354.0,82353.0,0.00029287]
[1742165908720,0.57468607,82354.0,82353.0,0.00029287]
[1742165909508,0.56968607,82354.0,82353.0,0.00029287]
[1742165910815,0.58871964,82354.0,82353.0,0.00029287]
[1742165911653,0.58422692,82354.0,82353.0,0.00029287]
[1742165915246,0.57268607,82354.0,82353.0,0.01975176]
[1742165915831,0.59171938,82354.0,82353.0,0.01975176]
[1742165916434,0.59171938,82354.0,82353.0,0.00029287]
[1742165917827,0.38067667,82354.0,82353.0,0.00029287]
[1742165918102,0.56571637,82354.0,82353.0,0.00029287]
[1742165918315,0.36164336,82354.0,82353.0,0.00029287]
[1742165918706,0.56806836,82354.0,82353.0,0.00029287]
[1742165918867,0.56806836,82354.0,82353.0,0.00929646]
[1742165919435,0.56840636,82354.0,82353.0,0.00929646]
[1742165919635,0.5781546,82354.0,82353.0,0.00929646]
[1742165920273,0.56840636,82354.0,82353.0,0.00929646]
[1742165920482,0.55626436,82354.0,82353.0,0.00929646]
[1742165920686,0.56840636,82354.0,82353.0,0.00929646]
[1742165920889,0.36198136,82354.0,82353.0,0.20358146]
[1742165922239,0.55626436,82354.0,82353.0,0.00929646]
[1742165922592,0.36198136,82354.0,82353.0,0.20358146]
[1742165923007,0.06198136,82354.0,82353.0,0.26302346]
[1742165923788,0.06198136,82354.0,82353.0,0.34062346]
[1742165924163,0.06098136,82354.0,82353.0,0.34062346]
[1742165924400,0.06098136,82354.0,82353.0,0.35084815]
[1742165925793,0.05898136,82354.0,82353.0,0.34062346]
[1742165926904,0.05898136,82354.0,82353.0,0.33161987]
[1742165928228,0.05898136,82354.0,82353.0,0.25401987]
[1742165929030,0.05898136,82354.0,82353.0,0.04759287]
[1742165929263,0.05898136,82354.0,82353.0,0.25401987]
[1742165930658,0.07801324,82354.0,82353.0,0.25401987]
[1742165930857,0.07801324,82354.0,82353.0,0.34834716]
[1742165936125,0.07801324,82354.0,82353.0,0.00029287]
[1742165936126,0.58443824,82354.0,82353.0,0.00029287]
[1742165936337,0.99420207,82354.0,82353.0,0.00029287]
[1742165936532,0.99420207,82354.0,82353.0,1e-08]
[1742165937233,0.97517019,82354.0,82353.0,1e-08]
[1742165937437,0.97817019,82354.0,82353.0,1e-08]
[1742165938254,0.98217019,82354.0,82353.0,1e-08]
[1742165939050,0.97917019,82354.0,82353.0,1e-08]
[1742165939499,0.206457,82341.0,82340.0,0.0001691]
[1742165939904,0.60161612,82341.0,82340.0,0.0001691]
[1742165940230,0.971279,82341.0,82340.0,0.0001691]
[1742165940577,0.99031661,82341.0,82340.0,1e-07]
[1742165941346,0.99031661,82341.0,82310.0,0.012149]
[1742165941347,0.194377,82315.0,82312.0,0.194382]
[1742165941487,0.206525,82315.0,82310.0,0.206535]
[1742165941692,0.012148,82316.0,82312.0,0.194382]
[1742165941891,0.012148,82316.0,82308.0,0.012149]
[1742165941892,0.012148,82313.0,82307.0,0.194394]
[1742165942088,0.012148,82312.0,82308.0,0.05429592]
[1742165942296,0.206543,82307.0,82306.0,0.0477692]
[1742165942500,0.206543,82307.0,82306.0,0.0001692]
[1742165943554,0.02255514,82307.0,82306.0,0.1945632]
[1742165943755,0.02255514,82307.0,82306.0,0.26444948]
[1742165946797,0.02255514,82307.0,82306.0,1.76444948]
[1742165948455,0.02255514,82307.0,82306.0,1.89274948]
[1742165948806,0.00012387,82312.0,82311.0,0.288833]
[1742165949733,0.00012387,82312.0,82311.0,0.287833]
[1742165949938,0.012149,82310.0,82307.0,0.046]
[1742165950145,0.01227187,82312.0,82306.0,0.0001692]
[1742165950146,0.206543,82307.0,82306.0,0.0001692]
[1742165950552,0.207543,82307.0,82306.0,0.0001692]
[1742165950747,0.22898366,82307.0,82306.0,0.0001692]
[1742165950951,0.02244066,82307.0,82306.0,0.0001692]
[1742165951208,0.22898366,82307.0,82306.0,0.0001692]
[1742165951536,0.2480265,82307.0,82306.0,0.0001692]
[1742165952648,0.0414835,82307.0,82306.0,0.04724788]
[1742165952823,0.0414835,82307.0,82306.0,0.0001692]
[1742165952824,0.2480265,82307.0,82306.0,0.0001692]
[1742165953026,0.5480265,82307.0,82306.0,0.0001692]
[1742165953410,0.56256735,82307.0,82306.0,0.0001692]
[1742165953947,0.56356735,82307.0,82306.0,0.0001692]
[1742165954593,0.56456735,82307.0,82306.0,0.0001692]
[1742165954974,0.93797615,82307.0,82306.0,0.0001692]
[1742165955380,0.93797615,82307.0,82290.0,0.00329545]
[1742165955381,0.206582,82291.0,82290.0,0.00329545]
[1742165955586,1.12744816,82291.0,82290.0,0.00329545]
[1742165955859,1.04402871,82291.0,82290.0,0.00329545]
[1742165956247,1.06307843,82291.0,82290.0,0.00329545]
[1742165957073,1.06807843,82291.0,82290.0,0.00329545]
[1742165957274,1.05369758,82291.0,82290.0,0.00329545]
[1742165957479,1.06723843,82291.0,82290.0,0.00329545]
[1742165957678,1.06323843,82291.0,82290.0,0.00329545]
[1742165957884,1.06723843,82291.0,82290.0,0.00329545]
[1742165958102,1.07123843,82291.0,82290.0,0.00329545]
[1742165958414,1.06723843,82291.0,82290.0,0.00329545]
[1742165958739,1.04818871,82291.0,82290.0,0.00329545]
[1742165958956,1.04418871,82291.0,82290.0,0.00329545]
[1742165959353,1.04718871,82291.0,82290.0,0.00329545]
[1742165959674,1.05018871,82291.0,82290.0,0.00329545]
[1742165960041,1.04418871,82291.0,82290.0,0.00329545]
[1742165960228,1.04818871,82291.0,82290.0,0.00329545]
[1742165960780,1.05218871,82291.0,82290.0,0.00329545]
[1742165960987,0.83106586,82291.0,82290.0,0.00329545]
[1742165961371,0.84321686,82291.0,82290.0,0.00329545]
[1742165961710,0.86226567,82291.0,82290.0,0.00329545]
[1742165961914,0.88463274,82291.0,82290.0,0.0254999]
[1742165962112,0.42824174,82291.0,82290.0,0.01544745]
[1742165962332,0.43224174,82291.0,82290.0,0.01544745]
[1742165962678,0.42824174,82291.0,82290.0,0.01544745]
[1742165962914,0.42424174,82291.0,82290.0,0.01544745]
[1742165963078,0.42724174,82291.0,82290.0,0.09841379]
[1742165963280,0.42424174,82291.0,82290.0,0.01544745]
[1742165963750,0.42724174,82291.0,82290.0,0.01544745]
[1742165964264,0.42724174,82291.0,82290.0,0.00329545]
[1742165965081,0.43639274,82291.0,82290.0,0.00329545]
[1742165965378,0.05306059,82291.0,82290.0,0.00329545]
[1742165965551,0.25964259,82291.0,82290.0,0.0449432]
[1742165965731,0.05306059,82291.0,82290.0,0.00329545]
[1742165965936,0.05306059,82291.0,82290.0,0.20988145]
[1742165966132,0.05506059,82291.0,82290.0,0.20988145]
[1742165966533,0.05406059,82291.0,82290.0,0.20988145]
[1742165967055,0.05406059,82291.0,82290.0,0.2940626]
[1742165968197,0.05406059,82291.0,82290.0,0.2820798]
[1742165969595,0.05406059,82291.0,82290.0,0.0876458]
[1742165970114,0.05406059,82291.0,82290.0,0.2820798]
[1742165970451,0.05406059,82291.0,82290.0,0.0876458]
[1742165971493,0.24849159,82291.0,82290.0,0.00346465]
[1742165971693,0.25229159,82291.0,82290.0,0.00346465]
[1742165971897,0.05786059,82291.0,82290.0,0.00346465]
[1742165972324,0.25229159,82291.0,82290.0,0.00346465]
[1742165972821,0.05786059,82291.0,82290.0,0.00346465]
[1742165973047,0.26444259,82291.0,82290.0,0.00346465]
[1742165974025,0.26344259,82291.0,82290.0,0.00346465]
[1742165974577,0.26544259,82291.0,82290.0,0.00346465]
[1742165974774,0.26744259,82291.0,82290.0,0.00346465]
[1742165975363,0.26544259,82291.0,82290.0,0.00346465]
[1742165975881,0.26744259,82291.0,82290.0,0.00346465]
[1742165976668,0.24839378,82291.0,82290.0,0.00346465]
[1742165976868,0.56293463,82291.0,82290.0,0.00346465]
[1742165977090,0.93411578,82291.0,82290.0,0.00346465]
[1742165979997,0.9531648,82291.0,82290.0,0.00346465]
[1742165981254,0.93411578,82291.0,82290.0,0.00346465]
[1742165981938,1.05957493,82291.0,82290.0,0.00346465]
[1742165983227,1.07411578,82291.0,82290.0,0.00346465]
[1742165984153,1.09316516,82291.0,82290.0,0.00346465]
[1742165984916,0.93862431,82291.0,82290.0,0.00346465]
[1742165985120,1.07878431,82291.0,82290.0,0.00346465]
[1742165985735,0.93862431,82291.0,82290.0,0.00346465]
[1742165987453,0.93862431,82291.0,82290.0,0.01207112]
[1742165987654,0.91957493,82291.0,82290.0,0.00346465]
[1742165990467,0.91907493,82291.0,82290.0,0.00346465]
[1742165990836,0.93812396,82291.0,82290.0,0.00346465]
[1742165991973,0.91907493,82291.0,82290.0,0.00346465]
[1742165992474,0.04131178,82291.0,82290.0,0.05336465]
[1742165992684,0.04131178,82291.0,82290.0,0.26771761]
[1742165993219,0.04131178,82291.0,82290.0,0.06113161]
[1742165993417,0.03931178,82291.0,82290.0,0.06113161]
[1742165993761,0.03931178,82291.0,82290.0,0.26771761]
[1742165993936,0.03731178,82291.0,82290.0,0.26771761]
[1742165994519,0.03731178,82291.0,82290.0,0.34491761]
[1742165995043,0.05635899,82291.0,82290.0,0.34491761]
[1742165996012,0.05635899,82291.0,82290.0,0.05336465]
[1742165996355,0.26294099,82291.0,82290.0,0.00346465]
[1742165996757,0.26131405,82291.0,82290.0,0.00346465]
[1742165996958,0.57346505,82291.0,82290.0,0.00346465]
[1742165997136,0.55441784,82291.0,82290.0,0.00346465]
[1742165997337,0.55641784,82291.0,82290.0,0.00346465]
[1742165997539,0.55641784,82291.0,82290.0,0.01153112]
[1742165997945,0.55841784,82291.0,82290.0,0.01153112]
[1742165998480,0.55641784,82291.0,82290.0,0.01153112]
[1742165998821,0.55841784,82291.0,82290.0,0.01153112]
[1742165999035,0.55841784,82291.0,82290.0,0.00346465]
[1742166000595,0.57746608,82291.0,82290.0,0.00346465]
[1742166000826,0.37088408,82291.0,82290.0,0.00346465]
[1742166001004,0.57746608,82291.0,82290.0,0.00346465]
[1742166001633,0.55641784,82291.0,82290.0,0.00346465]
[1742166002045,0.64895869,82291.0,82290.0,6.5e-07]
[1742166002661,0.64795869,82291.0,82290.0,6.5e-07]
[1742166003025,0.64595869,82291.0,82290.0,6.5e-07]
[1742166003226,0.64695869,82291.0,82290.0,6.5e-07]
[1742166003454,0.64595869,82291.0,82290.0,6.5e-07]
[1742166003653,0.206628,82273.0,82272.0,0.000169]
[1742166003826,0.21910206,82273.0,82272.0,0.000169]
[1742166004391,0.01247406,82273.0,82272.0,0.285199]
[1742166004546,0.01247406,82273.0,82272.0,0.3817954]
[1742166004880,0.02616707,82291.0,82290.0,0.331086]
[1742166005090,0.01506853,82291.0,82290.0,0.331086]
[1742166006087,0.01506853,82291.0,82290.0,0.330086]
[1742166006510,0.0003384,82300.0,82299.0,0.206563]
[1742166006734,0.0003384,82300.0,82299.0,0.5135118]
[1742166008408,0.10799068,82306.0,82305.0,0.331047]
[1742166008612,6.8e-07,82306.0,82305.0,0.331047]
[1742166009715,0.012146,82329.0,82323.0,0.193355]
[1742166009846,0.206492,82328.0,82323.0,0.333235]
[1742166010046,0.01904044,82328.0,82325.0,0.19435]
[1742166010307,0.18298244,82329.0,82325.0,0.19235]
[1742166010896,0.18310651,82329.0,82325.0,0.19235]
[1742166011257,0.194345,82328.0,82324.0,0.2889634]
[1742166011537,0.206497,82325.0,82324.0,0.0824654]
[1742166011691,0.194368,82318.0,82316.0,0.0784]
[1742166011893,0.012148,82317.0,82316.0,0.0784]
[1742166012263,0.206505,82322.0,82316.0,0.0784]
[1742166012535,0.206505,82322.0,82316.0,0.272772]
[1742166012536,0.194363,82320.0,82316.0,0.272772]
[1742166012721,0.164363,82320.0,82317.0,0.0697975]
[1742166013935,0.164363,82320.0,82316.0,0.0794]
[1742166014334,0.012147,82321.0,82317.0,0.194369]
[1742166014533,0.194366,82319.0,82317.0,0.002]
[1742166014735,0.194366,82319.0,82317.0,0.001]
[1742166014913,0.194366,82319.0,82318.0,0.0674679]
[1742166015110,0.206513,82319.0,82318.0,0.0674679]
[1742166015717,0.012147,82321.0,82318.0,0.0674679]
[1742166015718,0.206508,82321.0,82318.0,0.0674679]
[1742166015915,0.22554727,82322.0,82318.0,0.0674679]
[1742166016118,0.194363,82320.0,82318.0,0.0674679]
[1742166016393,0.194363,82320.0,82319.0,0.04926559]
[1742166016617,0.01904127,82322.0,82321.0,0.194361]
[1742166016998,0.00012407,82329.0,82326.0,0.0828]
[1742166017312,0.3,82327.0,82322.0,0.206505]
[1742166017523,0.194349,82326.0,82323.0,0.07908936]
[1742166017721,0.3,82327.0,82325.0,0.206496]
[1742166018270,0.3,82328.0,82325.0,0.206496]
[1742166018838,0.3,82328.0,82326.0,0.194347]
[1742166019001,0.001,82327.0,82326.0,0.206493]
[1742166019831,0.194349,82326.0,82323.0,0.206495]
[1742166020040,0.194358,82322.0,82321.0,0.0461]
[1742166020250,0.206505,82322.0,82316.0,0.012148]
[1742166020471,0.194358,82322.0,82318.0,0.194366]
[1742166020682,0.001,82327.0,82323.0,0.194356]
[1742166020820,0.001,82327.0,82326.0,0.282495]
[1742166021021,0.001,82327.0,82326.0,0.332295]
[1742166021225,0.001,82327.0,82326.0,0.4068248]
[1742166022281,0.002,82327.0,82326.0,0.4068248]
[1742166022706,0.001,82327.0,82326.0,0.4068248]
[1742166022912,0.002,82327.0,82326.0,0.4068248]
[1742166023285,0.001,82327.0,82326.0,0.4068248]
[1742166023509,0.0003382,82341.0,82328.0,0.20649]
[1742166023707,0.0003382,82341.0,82328.0,0.30800638]
[1742166024137,0.194326,82336.0,82328.0,0.30800638]
[1742166024540,0.194323,82337.0,82328.0,0.30900638]
[1742166025151,0.206466,82338.0,82328.0,0.30900638]
[1742166025357,0.194325,82337.0,82328.0,0.30900638]
[1742166025754,0.194325,82336.0,82328.0,0.30900638]
[1742166026321,0.194326,82336.0,82328.0,0.30900638]
[1742166026924,0.194326,82336.0,82328.0,0.31100638]
[1742166027238,0.206468,82337.0,82328.0,0.31100638]
[1742166027440,0.0003382,82341.0,82328.0,0.31100638]
[1742166027636,0.1946532,82341.0,82328.0,0.31100638]
[1742166027845,0.0003382,82341.0,82328.0,0.31100638]
[1742166028670,0.194316,82340.0,82328.0,0.31100638]
[1742166029196,0.0003382,82341.0,82328.0,0.31100638]
[1742166029941,0.1946522,82341.0,82328.0,0.31100638]
[1742166030139,0.194316,82340.0,82328.0,0.31100638]
[1742166030385,0.1946522,82341.0,82328.0,0.31100638]
[1742166030737,0.012145,82337.0,82328.0,0.003]
[1742166030908,0.52115292,82329.0,82328.0,0.003]
[1742166031346,1.00163407,82329.0,82328.0,0.003]
[1742166031512,1.00163407,82329.0,82279.0,0.10901153]
[1742166031513,0.206571,82296.0,82286.0,0.194441]
[1742166031719,0.206571,82296.0,82283.0,0.012153]
[1742166031720,0.206571,82296.0,82283.0,0.194449]
[1742166031922,0.206571,82296.0,82280.0,0.10901153]
[1742166032144,0.21754212,82291.0,82280.0,0.10901153]
[1742166032504,0.227961,82291.0,82280.0,0.10901153]
[1742166033028,0.227961,82291.0,82290.0,0.00058172]
[1742166033230,0.2218871,82291.0,82290.0,0.00058172]
[1742166033530,0.21146822,82291.0,82290.0,0.00058172]
[1742166034323,0.17636822,82291.0,82290.0,0.02008469]
[1742166034523,0.17636822,82291.0,82290.0,0.00058172]
[1742166034524,0.17836822,82291.0,82290.0,0.00058172]
[1742166034717,0.17736822,82291.0,82290.0,0.00058172]
[1742166035240,0.17636822,82291.0,82290.0,0.00058172]
[1742166035624,0.17836822,82291.0,82290.0,0.00058172]
[1742166035999,0.19741644,82291.0,82290.0,0.02008459]
[1742166036204,0.18036822,82291.0,82290.0,0.00058172]
[1742166038389,0.01496012,82291.0,82290.0,0.01273372]
[1742166039159,0.01296012,82291.0,82290.0,0.01273372]
[1742166039371,0.01096012,82291.0,82290.0,0.01273372]
[1742166039578,0.01096012,82291.0,82290.0,1.51273372]
[1742166039784,0.01096012,82291.0,82290.0,1.63230875]
[1742166040184,0.01096012,82291.0,82290.0,0.13230875]
[1742166041849,0.012148,82315.0,82290.0,0.13230875]
[1742166041850,0.004098,82320.0,82316.0,0.012148]
[1742166042052,0.004098,82320.0,82318.0,0.206514]
[1742166042257,0.004098,82320.0,82319.0,0.012147]
[1742166042871,0.004098,82320.0,82319.0,0.011147]
[1742166043237,0.00422205,82320.0,82319.0,0.011147]
[1742166043436,0.00522205,82320.0,82319.0,0.0948676]
[1742166043820,0.00522205,82320.0,82319.0,0.0960822]
[1742166044261,0.00522205,82320.0,82319.0,0.0948676]
[1742166044632,0.00622205,82320.0,82319.0,0.17698207]
[1742166045186,0.00522205,82320.0,82319.0,0.17698207]
[1742166045600,0.00522205,82320.0,82319.0,0.22498207]
[1742166045601,5e-08,82320.0,82319.0,0.22498207]
[1742166045765,0.012141,82360.0,82340.0,0.012144]
[1742166045970,0.194281,82355.0,82340.0,0.3310824]
[1742166046208,0.01903653,82353.0,82340.0,0.3298681]
[1742166046663,0.194288,82352.0,82340.0,0.3298681]
[1742166046883,0.01903653,82353.0,82340.0,0.3298681]
[1742166047192,0.01903653,82353.0,82340.0,0.3778681]
[1742166047525,0.01903653,82353.0,82340.0,0.3768681]
[1742166048109,0.000338,82354.0,82340.0,0.3768681]
[1742166049225,0.0013382,82341.0,82340.0,0.3768681]
[1742166049627,0.0013382,82341.0,82340.0,1.8798681]
[1742166050137,0.0013382,82341.0,82340.0,1.8768681]
[1742166050344,0.0023382,82341.0,82340.0,1.8798681]
[1742166050563,0.0013382,82341.0,82340.0,0.3798681]
[1742166050803,0.0023382,82341.0,82340.0,0.3808681]
[1742166051364,0.0023382,82341.0,82340.0,0.3798681]
[1742166051365,0.0013382,82341.0,82340.0,0.3798681]
[1742166051764,0.0023382,82341.0,82340.0,0.3818681]
[1742166052181,0.0013382,82341.0,82340.0,0.3798681]
[1742166052388,0.0013382,82341.0,82340.0,0.3768681]
[1742166052589,0.0003382,82341.0,82340.0,0.3768681]
[1742166052774,0.0013382,82341.0,82340.0,0.3788681]
[1742166052991,0.0013382,82341.0,82340.0,0.3768681]
[1742166053460,0.0013382,82341.0,82340.0,0.3788681]
[1742166053665,0.0013382,82341.0,82340.0,0.298137]
[1742166054288,0.0013382,82341.0,82340.0,0.297137]
[1742166054478,0.0013382,82341.0,82340.0,0.299137]
[1742166054886,0.0003382,82341.0,82340.0,0.298137]
[1742166055289,0.0003382,82341.0,82340.0,0.299137]
[1742166057071,0.0003382,82341.0,82340.0,0.093677]
[1742166057072,0.1946512,82341.0,82340.0,0.093677]
[1742166057281,0.2067952,82341.0,82340.0,0.045677]
[1742166057618,0.2067952,82341.0,82340.0,0.0031689]
[1742166058025,0.1946512,82341.0,82340.0,0.0031689]
[1742166058250,0.1946512,82341.0,82340.0,0.0021689]
[1742166058450,0.1946512,82341.0,82340.0,0.0031689]
[1742166058622,0.1946512,82341.0,82340.0,0.02656109]
[1742166058829,0.1946512,82341.0,82340.0,0.02456109]
[1742166059230,0.1956512,82341.0,82340.0,0.02456109]
[1742166059434,0.2077952,82341.0,82340.0,0.02356109]
[1742166060560,0.1956512,82341.0,82340.0,0.02356109]
[1742166060759,0.0013382,82341.0,82340.0,0.1944849]
[1742166060934,0.1966512,82341.0,82340.0,0.0001689]
[1742166061338,0.0023382,82341.0,82340.0,0.2066289]
[1742166062134,0.0013382,82341.0,82340.0,1.7066289]
[1742166062331,0.0013382,82341.0,82340.0,1.82620393]
[1742166063779,0.0003382,82341.0,82340.0,1.82620393]
[1742166064068,0.0003382,82341.0,82340.0,0.32720393]
[1742166064861,0.0003382,82341.0,82340.0,0.32820393]
[1742166065219,0.0003382,82341.0,82340.0,0.40480393]
[1742166065430,0.0003382,82341.0,82340.0,0.40580393]
[1742166065831,0.0003382,82341.0,82340.0,0.40480393]
[1742166066256,0.0003382,82341.0,82340.0,0.40580393]
[1742166067821,0.0003382,82341.0,82340.0,0.54476393]
[1742166069722,0.0003382,82341.0,82340.0,0.54376393]
[1742166070266,0.0003382,82341.0,82340.0,0.54476393]
[1742166070883,0.0003382,82341.0,82340.0,0.54676393]
[1742166071283,0.0003382,82341.0,82340.0,0.54476393]
[1742166071579,0.0003382,82341.0,82340.0,0.54576393]
[1742166071783,0.0003382,82341.0,82340.0,0.54976393]
[1742166072714,0.0003382,82341.0,82340.0,0.59866393]
[1742166073096,0.0003382,82341.0,82340.0,2.09866393]
[1742166077495,0.0003382,82341.0,82340.0,1.95970393]
[1742166077692,0.0003382,82341.0,82340.0,0.59862393]
[1742166079741,0.0003382,82341.0,82340.0,2.09862393]
[1742166083204,0.0003382,82341.0,82340.0,0.33320393]
[1742166084048,0.0003382,82341.0,82340.0,0.32620393]
[1742166084302,0.0003382,82341.0,82340.0,0.32920393]
[1742166084502,0.0003382,82341.0,82340.0,0.33120393]
[1742166086912,0.0003382,82341.0,82340.0,0.12474393]
[1742166087112,0.0003382,82341.0,82340.0,0.0051689]
[1742166087113,0.2067952,82341.0,82340.0,0.0051689]
[1742166087644,0.51770177,82341.0,82340.0,0.0051689]
[1742166087792,0.51770177,82341.0,82340.0,0.0031689]
[1742166088798,0.3003382,82341.0,82340.0,0.0031689]
[1742166089064,0.0003382,82341.0,82340.0,0.23180729]
[1742166089199,0.0003382,82341.0,82340.0,0.23080729]
[1742166089620,0.0003382,82341.0,82340.0,0.22880729]
[1742166090034,0.0003382,82341.0,82340.0,1.72880729]
[1742166090222,0.0013382,82341.0,82340.0,1.72880729]
[1742166091049,0.0013382,82341.0,82340.0,0.22880729]
[1742166091530,0.0013382,82341.0,82340.0,1.72880729]
[1742166092554,0.0003382,82341.0,82340.0,1.72880729]
[1742166092758,0.0003382,82341.0,82340.0,1.73080729]
[1742166092959,0.0003382,82341.0,82340.0,0.23180729]
[1742166093168,0.0002982,82341.0,82340.0,0.23180729]
[1742166097742,0.02286622,82341.0,82340.0,0.23180729]
[1742166099540,0.02286622,82341.0,82340.0,0.0031689]
[1742166099541,0.1946112,82341.0,82340.0,0.0031689]
[1742166099721,0.2067552,82341.0,82340.0,0.0031689]
[1742166100696,0.2067552,82341.0,82340.0,0.0021689]
[1742166101293,0.2067552,82341.0,82340.0,0.0001689]
[1742166101882,0.2077552,82341.0,82340.0,0.0001689]
[1742166102081,0.1956112,82341.0,82340.0,0.0001689]
[1742166102234,0.1956112,82341.0,82340.0,0.22729229]
[1742166102235,0.0012982,82341.0,82340.0,0.22729229]
[1742166102754,0.0032982,82341.0,82340.0,0.22729229]
[1742166102975,0.0012982,82341.0,82340.0,0.22729229]
[1742166103265,0.0022982,82341.0,82340.0,0.22729229]
[1742166103473,0.0022982,82341.0,82340.0,0.22850663]
[1742166103474,0.0012982,82341.0,82340.0,0.22850663]
[1742166103678,0.0012982,82341.0,82340.0,0.22850652]
[1742166103820,0.0012982,82341.0,82340.0,0.22729229]
[1742166104025,0.0012982,82341.0,82340.0,0.22829229]
[1742166104845,0.0022982,82341.0,82340.0,0.22829229]
[1742166105260,0.0002982,82341.0,82340.0,0.2382796]
[1742166105663,0.0012982,82341.0,82340.0,0.2412796]
[1742166105864,0.0012982,82341.0,82340.0,0.2402796]
[1742166106225,0.0012982,82341.0,82340.0,0.2432796]
[1742166109605,0.0012982,82341.0,82340.0,1.7432796]
[1742166111279,0.0012982,82341.0,82340.0,0.2432796]
[1742166111979,0.0012982,82341.0,82340.0,1.7432796]
[1742166114833,0.0012982,82341.0,82340.0,0.2432796]
[1742166115523,0.0012982,82341.0,82340.0,0.24449378]
[1742166115921,0.0012982,82341.0,82340.0,0.38317378]
[1742166116218,0.0012982,82341.0,82340.0,0.3819596]
[1742166119680,0.0012982,82341.0,82340.0,1.8819596]
[1742166123352,0.0012982,82341.0,82340.0,0.3819596]
[1742166123960,0.0012982,82341.0,82340.0,1.8819596]
[1742166124681,2e-07,82341.0,82340.0,2.6914592]
[1742166125319,2e-07,82341.0,82340.0,2.81103423]
[1742166125860,0.000338,82354.0,82353.0,0.283227]
[1742166126039,0.00046205,82354.0,82353.0,0.3528376]
[1742166126235,0.00046205,82354.0,82353.0,0.3518376]
[1742166126440,5e-08,82354.0,82353.0,0.3978376]
[1742166126643,5e-08,82359.0,82358.0,0.206415]
[1742166126847,5e-08,82359.0,82358.0,0.34594883]
[1742166127025,5e-08,82359.0,82358.0,0.46431003]
[1742166128850,5e-08,82359.0,82358.0,0.47031003]
[1742166129059,5e-08,82359.0,82358.0,0.33599003]
[1742166129253,5e-08,82359.0,82358.0,0.47439003]
[1742166129454,5e-08,82359.0,82358.0,0.006]
[1742166129709,5e-08,82359.0,82358.0,0.205273]
[1742166129946,5e-08,82359.0,82358.0,0.217415]
[1742166130587,5e-08,82359.0,82358.0,0.212415]
[1742166130876,5e-08,82359.0,82358.0,0.214415]
[1742166131053,5e-08,82359.0,82358.0,0.32799003]
[1742166131371,5e-08,82359.0,82358.0,0.33099003]
[1742166134111,5e-08,82359.0,82358.0,0.31884803]
[1742166134319,0.20641205,82359.0,82358.0,0.12457503]
[1742166134450,0.19427105,82359.0,82358.0,0.005]
[1742166136861,0.20641205,82359.0,82358.0,0.005]
[1742166137505,0.58482977,82359.0,82358.0,0.005]
[1742166137791,0.58331205,82359.0,82358.0,0.005]
[1742166138707,0.58331205,82359.0,82358.0,0.002]
[1742166139857,0.194293,82350.0,82347.0,0.194299]
[1742166140214,0.012142,82358.0,82320.0,0.53718926]
[1742166140215,0.00200005,82359.0,82358.0,0.206415]
[1742166140365,0.194275,82358.0,82348.0,0.0619335]
[1742166140572,0.19429,82352.0,82348.0,0.0619335]
[1742166140757,0.012142,82358.0,82350.0,0.194292]
[1742166140958,0.19627805,82359.0,82356.0,0.194276]
[1742166141171,0.19627805,82359.0,82352.0,0.012142]
[1742166141172,0.194274,82358.0,82352.0,0.012142]
[1742166141373,0.00200005,82359.0,82353.0,0.012142]
[1742166141687,0.002,82358.0,82357.0,0.206418]
[1742166141870,0.002,82358.0,82357.0,0.28510788]
[1742166142069,0.00200005,82359.0,82358.0,0.206415]
[1742166142270,0.00200005,82359.0,82358.0,0.205415]
[1742166142674,0.00200005,82359.0,82358.0,0.285715]
[1742166143078,0.00200005,82359.0,82358.0,0.283715]
[1742166143285,0.00200005,82359.0,82358.0,0.38903303]
[1742166143549,0.00200005,82359.0,82358.0,0.30873303]
[1742166144110,5e-08,82359.0,82358.0,0.30873303]
[1742166144313,5e-08,82359.0,82358.0,0.31373303]
[1742166144514,5e-08,82359.0,82358.0,0.30873303]
[1742166144770,5e-08,82359.0,82358.0,0.31273303]
[1742166144977,5e-08,82359.0,82358.0,0.31573303]
[1742166145179,5e-08,82359.0,82358.0,0.31173303]
[1742166145619,5e-08,82359.0,82358.0,0.31573303]
[1742166145818,5e-08,82359.0,82358.0,0.30676003]
[1742166145977,0.01903013,82359.0,82358.0,0.11248703]
[1742166146387,0.0302988,82359.0,82358.0,0.30676003]
[1742166146587,0.01903013,82359.0,82358.0,0.30676003]
[1742166147343,0.01903013,82359.0,82358.0,0.31890203]
[1742166147545,5e-08,82359.0,82358.0,0.31890203]
[1742166148191,5e-08,82359.0,82358.0,0.44890203]
[1742166148604,5e-08,82359.0,82358.0,1.94890203]
[1742166150156,5e-08,82359.0,82358.0,0.36860203]
[1742166150353,5e-08,82359.0,82358.0,0.31890203]
[1742166157020,5e-08,82359.0,82358.0,1.81890203]
[1742166157297,5e-08,82359.0,82358.0,0.31890203]
[1742166161368,5e-08,82359.0,82358.0,1.81890203]
[1742166162496,5e-08,82359.0,82358.0,1.89480203]
[1742166164415,5e-08,82359.0,82358.0,1.94110203]
[1742166165535,5e-08,82359.0,82358.0,1.93710203]
[1742166166148,5e-08,82359.0,82358.0,1.93410203]
[1742166166354,5e-08,82359.0,82358.0,2.62080163]
[1742166166549,5e-08,82359.0,82358.0,2.62480163]
[1742166166768,5e-08,82359.0,82358.0,2.62080163]
[1742166166971,5e-08,82359.0,82358.0,2.62580163]
[1742166167172,5e-08,82359.0,82358.0,2.63080163]
[1742166167310,0.0003384,82383.0,82358.0,2.63080163]
[1742166167311,0.0003384,82383.0,82382.0,0.328555]
[1742166167517,0.0003384,82383.0,82382.0,0.5603054]
[1742166168076,0.0003384,82383.0,82382.0,2.0603054]
[1742166168418,8e-07,82384.0,82383.0,0.134338]
[1742166168617,0.0001248,82384.0,82383.0,0.13555143]
[1742166168936,0.0001248,82384.0,82383.0,0.14697212]